fUST/lending_fUST_20250106
["ID","MTS","AMOUNT","RATE_DAILY","PERIOD"]
[347876452,1736176256092,-2318.0,0.00022749,2]
[347876453,1736176256103,-10874.01763752,0.00022771,2]
[347876454,1736176256112,-2000.0,0.000229,2]
[347876455,1736176256122,-153.06,0.000229,31]
[347876456,1736176256131,-153.06,0.000229,31]
[347876457,1736176256141,-153.06,0.000229,31]
[347876458,1736176256151,-153.06,0.000229,31]
[347876459,1736176256161,-153.06,0.000229,31]
[347876460,1736176256171,-153.06,0.000229,31]
[347876461,1736176256180,-153.06,0.000229,31]
[347876462,1736176256190,-167.23832587,0.00022987,2]
[347876463,1736176256200,-200.0,0.00023,2]
[347876464,1736176256210,-315.80748076,0.00023,2]
[347876465,1736176256220,-3279.32,0.00023013,3]
[347876466,1736176256229,-500.0,0.00023013,3]
[347876467,1736176256238,-2483.39,0.00023013,3]
[347876468,1736176256248,-768.89,0.00023013,3]
[347876469,1736176256260,-1864.28,0.00023013,3]
[347876470,1736176256272,-10186.74,0.00023013,3]
[347876471,1736176256282,-785.92,0.00023013,3]
[347876472,1736176256292,-819.79,0.00023013,3]
[347876473,1736176256303,-508.23535966,0.00023013,3]
[347876474,1736176256312,-500.0,0.00023013,3]
[347876475,1736176256322,-643.33996437,0.00023013,3]
[347876476,1736176256332,-500.0,0.00023013,3]
[347876477,1736176256342,-733.9,0.00023013,3]
[347876478,1736176256351,-938.96,0.00023013,3]
[347876479,1736176256361,-500.0,0.00023013,3]
[347876480,1736176256370,-1261.71,0.00023013,3]
[347876481,1736176256380,-500.0,0.00023069,2]
[347876482,1736176256390,-151.0,0.00023081,7]
[347876483,1736176256400,-151.0,0.00023081,7]
[347876484,1736176256410,-151.0,0.00023081,7]
[347876485,1736176256420,-151.0,0.00023081,7]
[347876486,1736176256430,-151.0,0.00023081,7]
[347876487,1736176256440,-151.0,0.00023081,7]
[347876488,1736176256450,-263.202796,0.00023081,7]
[347876489,1736176256459,-151.0,0.00023081,7]
[347876490,1736176256469,-151.0,0.00023081,7]
[347876491,1736176256479,-5164.75756255,0.00023081,10]
[347876492,1736176256489,-5164.75756255,0.00023081,10]
[347876493,1736176256499,-5164.75756255,0.00023081,10]
[347876494,1736176256511,-151.0,0.00023086,7]
[347876495,1736176256521,-151.0,0.00023086,7]
[347876496,1736176256531,-151.0,0.00023086,7]
[347876497,1736176256540,-151.0,0.00023086,7]
[347876498,1736176256551,-151.0,0.00023086,7]
[347876499,1736176256561,-151.0,0.00023086,7]
[347876500,1736176256571,-151.0,0.00023086,7]
[347876501,1736176256582,-151.0,0.00023086,7]
[347876502,1736176256592,-151.0,0.00023086,7]
[347876503,1736176256601,-151.0,0.00023086,7]
[347876504,1736176256611,-151.0,0.00023086,7]
[347876505,1736176256621,-151.0,0.00023086,7]
[347876506,1736176256631,-238.920008,0.00023086,7]
[347876507,1736176256642,-151.58417643,0.00023087,2]
[347876508,1736176256651,-9912.76643518,0.00023087,2]
[347876509,1736176256660,-70405.73944123,0.00023087,10]
[347876517,1736176913180,165.588014,0.00013973,2]
[347876589,1736177297304,3046.29341989,0.000125,2]
[347876669,1736177432724,-2585.82217612,0.00016064,2]
[347876711,1736177438396,-2414.17782388,0.00016064,2]
[347876712,1736177438406,-19.62218612,0.00016226,2]
[347876713,1736177438809,-280.37781388,0.00016226,2]
[347876714,1736177438818,-671.03113166,0.00016226,2]
[347876730,1736177440745,-80.96886834,0.00016226,2]
[347876731,1736177440754,-19588.79748425,0.00016227,2]
[347876773,1736177445265,-501.19674944,0.00016064,2]
[347876774,1736177445275,-5311.20251575,0.00016227,2]
[347876775,1736177445286,-2268.14433562,0.00017,2]
[347876776,1736177445296,-161.925953,0.00017077,2]
[347876777,1736177445307,-161.925953,0.00017081,2]
[347876778,1736177445318,-161.925953,0.00017086,2]
[347876779,1736177445328,-161.925953,0.00017091,2]
[347876780,1736177445337,-161.925953,0.00017096,2]
[347876781,1736177445352,-161.925953,0.000171,2]
[347876782,1736177445362,-161.925953,0.00017105,2]
[347876783,1736177445371,-161.925953,0.0001711,2]
[347876784,1736177445382,-161.925953,0.00017115,2]
[347876785,1736177445393,-161.925953,0.00017119,2]
[347876786,1736177445403,-161.925953,0.00017124,2]
[347876787,1736177445412,-161.925953,0.00017129,2]
[347876788,1736177445424,-161.925953,0.00017134,2]
[347876789,1736177445434,-161.925953,0.00017138,2]
[347876790,1736177445444,-161.925953,0.00017143,2]
[347876791,1736177445455,-161.925953,0.00017148,2]
[347876792,1736177445465,-161.925953,0.00017153,2]
[347876793,1736177445477,-161.925953,0.00017157,2]
[347876794,1736177445486,-161.925953,0.00017162,2]
[347876795,1736177445496,-420.0,0.00017736,2]
[347876796,1736177445505,-181.138002,0.00017842,2]
[347876797,1736177445515,-256.72411684,0.00017999,2]
[347876798,1736177445524,-220.94752015,0.00017999,2]
[347876799,1736177445534,-212.70100464,0.00017999,2]
[347876800,1736177445544,-500.0,0.00017999,2]
[347876801,1736177445554,-216.56725959,0.00017999,2]
[347876802,1736177445563,-424.7069181,0.00017999,2]
[347876803,1736177445573,-500.0,0.00017999,2]
[347876804,1736177445583,-500.0,0.00017999,2]
[347876805,1736177445593,-316.62016005,0.00017999,2]
[347876806,1736177445606,-500.0,0.00017999,2]
[347876807,1736177445616,-500.0,0.00017999,2]
[347876808,1736177445625,-235.41892649,0.00017999,2]
[347876809,1736177445635,-500.0,0.00017999,2]
[347876810,1736177445644,-500.0,0.00017999,2]
[347876811,1736177445654,-500.0,0.00017999,2]
[347876812,1736177445664,-500.0,0.00017999,2]
[347876813,1736177445674,-500.0,0.00017999,2]
[347876814,1736177445683,-492.3564502,0.00017999,2]
[347876815,1736177445693,-613.86194056,0.00017999,2]
[347876816,1736177445703,-500.0,0.00017999,2]
[347876818,1736177445713,-500.0,0.00017999,2]
[347876820,1736177445723,-500.0,0.00017999,2]
[347876822,1736177445733,-500.0,0.00017999,2]
[347876823,1736177445742,-500.0,0.00017999,2]
[347876825,1736177445751,-500.0,0.00017999,2]
[347876826,1736177445761,-500.0,0.00017999,2]
[347876827,1736177445771,-500.0,0.00017999,2]
[347876828,1736177445780,-500.0,0.00017999,2]
[347876829,1736177445790,-500.0,0.00017999,2]
[347876830,1736177445799,-500.0,0.00017999,2]
[347876831,1736177445809,-500.0,0.00017999,2]
[347876832,1736177445819,-500.0,0.00017999,2]
[347876833,1736177445828,-500.0,0.00017999,2]
[347876834,1736177445838,-500.0,0.00017999,2]
[347876835,1736177445849,-500.0,0.00017999,2]
[347876836,1736177445859,-500.0,0.00017999,2]
[347876837,1736177445869,-500.0,0.00017999,2]
[347876838,1736177445878,-500.0,0.00017999,2]
[347876839,1736177445888,-500.0,0.00017999,2]
[347876841,1736177445898,-500.0,0.00017999,2]
[347876843,1736177445907,-500.0,0.00017999,2]
[347876845,1736177445918,-500.0,0.00017999,2]
[347876846,1736177445927,-500.0,0.00017999,2]
[347876847,1736177445937,-500.0,0.00017999,2]
[347876848,1736177445947,-23125.61795447,0.00018,2]
[347876849,1736177445960,-29851.38204553,0.00018,2]
[347876850,1736177445969,-43491.90785447,0.00018,2]
[347876851,1736177445981,-10152.6296,0.00018,2]
[347876852,1736177445992,-46182.14263694,0.00018,2]
[347876853,1736177446002,-250.0,0.00018128,2]
[347876854,1736177446012,-3018.3876382,0.00018153,2]
[347876855,1736177446022,-1038.36972486,0.000189,2]
[347877022,1736177950237,165.588014,0.00013973,2]
[347877026,1736178124142,413.85,0.0001505,2]
[347877030,1736178565790,4000.0,0.00025,120]
[347877031,1736178619676,-1030.62179572,0.00015697,2]
[347877032,1736178619698,-4589.08220695,0.00015856,2]
[347877033,1736178619719,-194.76604381,0.00016016,2]
[347877034,1736178619745,-300.0,0.0001659,2]
[347877035,1736178619770,-24900.0,0.00016591,2]
[347877036,1736178619793,-1810.81921048,0.00017344,2]
[347877037,1736178619815,-1915.39129596,0.00017365,2]
[347877038,1736178619838,-644.06143211,0.00017365,2]
[347877039,1736178619859,-3537.9577454,0.00017463,2]
[347877040,1736178619881,-181.1380028,0.00017508,2]
[347877041,1736178619903,-1178.54317091,0.00017508,2]
[347877042,1736178619924,-250.0,0.00017706,2]
[347877043,1736178619945,-2585.8221761,0.00017706,2]
[347877044,1736178619965,-682.3862625,0.00017921,2]
[347877148,1736178632636,-3432.28816208,0.00018061,2]
[347877157,1736178633214,-15113.09108952,0.00018061,2]
[347877158,1736178633224,-420.0,0.00018128,2]
[347877159,1736178633234,-632.67876318,0.00018436,2]
[347877160,1736178633244,-13057.60010529,0.00018553,2]
[347877161,1736178633253,-153.46,0.000186,2]
[347877162,1736178633263,-988.54826539,0.00018861,2]
[347877163,1736178633277,-1145.47919814,0.000189,2]
[347877164,1736178633287,-988.54826535,0.00018906,2]
[347877165,1736178633297,-988.54826535,0.00018951,2]
[347877166,1736178633307,-419.76854565,0.00018962,2]
[347877167,1736178633319,-1877.86705578,0.00018962,2]
[347877168,1736178633333,-439.565,0.00018962,2]
[347877169,1736178633345,-5300.59532077,0.00018962,2]
[347877170,1736178633355,-258.46,0.00018973,2]
[347877171,1736178633365,-190.53928266,0.00018989,2]
[347877172,1736178633374,-988.54826535,0.00018996,2]
[347877173,1736178633384,-240.63028843,0.00018999,2]
[347877174,1736178633394,-500.0,0.00018999,2]
[347877175,1736178633403,-500.0,0.00018999,2]
[347877176,1736178633413,-500.0,0.00018999,2]
[347877177,1736178633423,-167.97007081,0.00018999,2]
[347877178,1736178633433,-500.0,0.00018999,2]
[347877179,1736178633444,-500.0,0.00018999,2]
[347877180,1736178633454,-500.0,0.00018999,2]
[347877181,1736178633465,-500.0,0.00018999,2]
[347877182,1736178633474,-500.0,0.00018999,2]
[347877183,1736178633483,-500.0,0.00018999,2]
[347877184,1736178633493,-294.85607173,0.00018999,2]
[347877185,1736178633502,-500.0,0.00018999,2]
[347877186,1736178633513,-500.0,0.00018999,2]
[347877187,1736178633526,-359.29105074,0.00018999,2]
[347877188,1736178633621,-500.0,0.00018999,2]
[347877189,1736178633633,-500.0,0.00018999,2]
[347877190,1736178633643,-637.12399235,0.00018999,2]
[347877191,1736178633653,-500.0,0.00018999,2]
[347877192,1736178633663,-500.0,0.00018999,2]
[347877193,1736178633673,-500.0,0.00018999,2]
[347877194,1736178633682,-500.0,0.00018999,2]
[347877195,1736178633692,-500.0,0.00018999,2]
[347877196,1736178633702,-500.0,0.00018999,2]
[347877197,1736178633712,-500.0,0.00018999,2]
[347877198,1736178633722,-500.0,0.00018999,2]
[347877199,1736178633732,-500.0,0.00018999,2]
[347877200,1736178633742,-500.0,0.00018999,2]
[347877201,1736178633757,-500.0,0.00018999,2]
[347877202,1736178633767,-500.0,0.00018999,2]
[347877203,1736178633778,-500.0,0.00018999,2]
[347877204,1736178633788,-435.99244628,0.00018999,2]
[347877205,1736178633798,-500.0,0.00018999,2]
[347877206,1736178633808,-436.15571042,0.00018999,2]
[347877207,1736178633820,-63.84428958,0.00018999,2]
[347877208,1736178633829,-500.0,0.00018999,2]
[347877209,1736178633839,-500.0,0.00018999,2]
[347877210,1736178633849,-39.90298672,0.00018999,2]
[347877211,1736178633861,-460.09701328,0.00018999,2]
[347877212,1736178633871,-500.0,0.00018999,2]
[347877213,1736178633881,-475.19081078,0.00018999,2]
[347877214,1736178633891,-500.0,0.00018999,2]
[347877215,1736178633901,-500.0,0.00018999,2]
[347877216,1736178633911,-500.0,0.00018999,2]
[347877217,1736178633921,-500.0,0.00018999,2]
[347877218,1736178633931,-500.0,0.00018999,2]
[347877219,1736178633941,-500.0,0.00018999,2]
[347877220,1736178633951,-500.0,0.00018999,2]
[347877221,1736178633961,-500.0,0.00018999,2]
[347877222,1736178633971,-500.0,0.00018999,2]
[347877224,1736178633980,-500.0,0.00018999,2]
[347877226,1736178633990,-500.0,0.00018999,2]
[347877228,1736178634000,-98.19695345,0.00018999,2]
[347877671,1736178638483,-401.80304655,0.00018999,2]
[347877673,1736178638493,-500.0,0.00018999,2]
[347877675,1736178638502,-500.0,0.00018999,2]
[347877677,1736178638512,-274.04922625,0.00018999,2]
[347877679,1736178638521,-333.41408031,0.00018999,2]
[347877682,1736178638532,-232.90822544,0.00018999,2]
[347877684,1736178638541,-9240.55106241,0.00019,2]
[347877686,1736178638551,-22847.39994203,0.00019,2]
[347877688,1736178638562,-1766.56657343,0.00019,2]
[347877690,1736178638573,-110527.48010571,0.00019,2]
[347877692,1736178638582,-86230.50311364,0.00019,3]
[347877694,1736178638592,-5000.0,0.00019,2]
[347877696,1736178638601,-151.0,0.00019,2]
[347877699,1736178638610,-151.0,0.00019,2]
[347877702,1736178638623,-10034.43114682,0.00019,2]
[347877704,1736178638633,-302.8788636,0.00019,2]
[347877706,1736178638642,-303.00000303,0.00019,2]
[347877708,1736178638652,-4998.77855666,0.00019,2]
[347877710,1736178638661,-4998.7785565,0.00019,2]
[347877712,1736178638670,-4998.7785565,0.00019,2]
[347877714,1736178638679,-4998.7785565,0.00019,2]
[347877716,1736178638688,-4998.7785565,0.00019,2]
[347877718,1736178638698,-4998.7785565,0.00019,2]
[347877720,1736178638707,-988.54826535,0.00019041,2]
[347877722,1736178638716,-3000.0,0.00019078,2]
[347877724,1736178638725,-32637.23042334,0.00019078,2]
[347877726,1736178638734,-151.0,0.000191,2]
[347877728,1736178638744,-151.0,0.000191,2]
[347877730,1736178638754,-151.0,0.000191,2]
[347877732,1736178638763,-151.0,0.000191,2]
[347877734,1736178638774,-31658.96154481,0.00019114,2]
[347877736,1736178638783,-4998.7785565,0.00019141,2]
[347877738,1736178638792,-500.0,0.00019173,2]
[347877740,1736178638801,-500.0,0.00019173,2]
[347877742,1736178638811,-500.0,0.00019173,2]
[347877744,1736178638820,-500.0,0.00019173,2]
[347877746,1736178638829,-503.6687696,0.00019173,2]
[347877748,1736178638838,-503.03282137,0.00019173,2]
[347877750,1736178638849,-500.0,0.00019173,2]
[347877752,1736178638858,-363.01335817,0.00019173,2]
[347877753,1736178638867,-500.0,0.00019173,2]
[347877755,1736178638877,-502.74456642,0.00019173,2]
[347877758,1736178638886,-153.03446642,0.00019173,2]
[347877759,1736178638896,-500.0,0.00019173,2]
[347877761,1736178638905,-500.0,0.00019173,2]
[347877763,1736178638914,-500.0,0.00019173,2]
[347877765,1736178638924,-166.05432455,0.00019173,2]
[347877767,1736178638934,-500.0,0.00019178,2]
[347877769,1736178638943,-500.0,0.00019178,2]
[347877771,1736178638952,-500.0,0.00019178,2]
[347877773,1736178638961,-500.0,0.00019178,2]
[347877775,1736178638970,-500.0,0.00019178,2]
[347877777,1736178638980,-500.0,0.00019178,2]
[347877779,1736178638989,-477.03911807,0.00019178,2]
[347877781,1736178638999,-500.0,0.00019178,2]
[347877783,1736178639008,-585.79436646,0.00019178,2]
[347877785,1736178639019,-500.0,0.00019178,2]
[347877788,1736178639031,-500.0,0.00019178,2]
[347877789,1736178639042,-500.0,0.00019178,2]
[347877791,1736178639051,-502.70866287,0.00019178,2]
[347877794,1736178639061,-500.0,0.00019178,2]
[347877796,1736178639070,-500.0,0.00019178,2]
[347877798,1736178639080,-500.0,0.00019178,2]
[347877800,1736178639090,-504.38462313,0.00019178,2]
[347877802,1736178639099,-500.0,0.00019178,2]
[347877803,1736178639108,-500.0,0.00019178,2]
[347877806,1736178639118,-500.0,0.00019178,2]
[347877807,1736178639128,-450.67491659,0.00019178,2]
[347877809,1736178639137,-500.81929331,0.00019178,2]
[347877811,1736178639147,-500.0,0.00019178,2]
[347877813,1736178639157,-500.0,0.00019178,2]
[347877815,1736178639167,-500.0,0.00019178,2]
[347877817,1736178639176,-500.0,0.00019178,2]
[347877819,1736178639186,-500.0,0.00019178,2]
[347877821,1736178639195,-500.72363358,0.00019178,2]
[347877823,1736178639205,-502.31632052,0.00019178,2]
[347877825,1736178639214,-607.13649725,0.00019178,2]
[347877835,1736178639298,-500.0,0.00019178,2]
[347877837,1736178639307,-500.0,0.00019178,2]
[347877839,1736178639318,-504.09900591,0.00019178,2]
[347877841,1736178639328,-500.0,0.00019178,2]
[347877843,1736178639336,-500.75020973,0.00019178,2]
[347877845,1736178639346,-500.0,0.00019178,2]
[347877847,1736178639355,-500.0,0.00019178,2]
[347877849,1736178639365,-500.0,0.00019178,2]
[347877851,1736178639374,-504.19747622,0.00019178,2]
[347877853,1736178639383,-500.0,0.00019178,2]
[347877855,1736178639392,-500.0,0.00019178,2]
[347877857,1736178639401,-500.0,0.00019178,2]
[347877859,1736178639411,-500.0,0.00019178,2]
[347877861,1736178639420,-500.0,0.00019178,2]
[347877863,1736178639430,-500.0,0.00019178,2]
[347877865,1736178639439,-500.0,0.00019178,2]
[347877867,1736178639449,-500.0,0.00019178,2]
[347877869,1736178639458,-500.0,0.00019178,2]
[347877871,1736178639468,-500.0,0.00019178,2]
[347877873,1736178639477,-500.0,0.00019178,2]
[347877875,1736178639487,-500.0,0.00019178,2]
[347877876,1736178639497,-500.29880191,0.00019178,2]
[347877879,1736178639506,-500.76025988,0.00019178,2]
[347877881,1736178639516,-500.0,0.00019178,2]
[347877882,1736178639526,-500.0,0.00019178,2]
[347877884,1736178639536,-500.0,0.00019178,2]
[347877887,1736178639546,-224.84158998,0.00019178,2]
[347877888,1736178639555,-500.0,0.00019178,2]
[347877890,1736178639564,-500.48048419,0.00019178,2]
[347877892,1736178639573,-579.83034062,0.00019178,2]
[347877894,1736178639583,-500.0,0.00019178,2]
[347877896,1736178639592,-500.0,0.00019178,2]
[347877899,1736178639602,-500.0,0.00019178,2]
[347877901,1736178639613,-504.64770332,0.00019178,2]
[347877903,1736178639624,-501.09498638,0.00019178,2]
[347877905,1736178639634,-500.0,0.00019178,2]
[347877906,1736178639643,-500.0,0.00019178,2]
[347877908,1736178639653,-500.0,0.00019178,2]
[347877910,1736178639663,-500.0,0.00019178,2]
[347877913,1736178639672,-500.0,0.00019178,2]
[347877915,1736178639682,-501.20819634,0.00019178,2]
[347877917,1736178639692,-500.0,0.00019178,2]
[347877918,1736178639702,-500.0,0.00019178,2]
[347877921,1736178639711,-500.0,0.00019178,2]
[347877923,1736178639721,-500.0,0.00019178,2]
[347877924,1736178639730,-500.0,0.00019178,2]
[347877926,1736178639739,-500.0,0.00019178,2]
[347877928,1736178639749,-500.0,0.00019178,2]
[347877930,1736178639758,-500.0,0.00019178,2]
[347877932,1736178639769,-500.0,0.00019178,2]
[347877935,1736178639781,-500.0,0.00019178,2]
[347877937,1736178639795,-500.0,0.00019178,2]
[347877939,1736178639805,-500.0,0.00019178,2]
[347877941,1736178639815,-500.0,0.00019178,2]
[347877942,1736178639824,-500.0,0.00019178,2]
[347877944,1736178639834,-500.0,0.00019178,2]
[347877947,1736178639844,-500.0,0.00019178,2]
[347877950,1736178639855,-504.1439734,0.00019178,2]
[347877952,1736178639864,-500.0,0.00019178,2]
[347877953,1736178639874,-500.0,0.00019178,2]
[347877956,1736178639884,-500.0,0.00019178,2]
[347877957,1736178639893,-500.0,0.00019178,2]
[347877960,1736178639903,-500.0,0.00019178,2]
[347877961,1736178639913,-500.0,0.00019178,2]
[347877964,1736178639923,-500.0,0.00019178,2]
[347877966,1736178639932,-500.0,0.00019178,2]
[347877968,1736178639942,-500.0,0.00019178,2]
[347877970,1736178639951,-500.0,0.00019178,2]
[347877971,1736178639961,-500.0,0.00019178,2]
[347877973,1736178639970,-500.0,0.00019178,2]
[347877975,1736178639979,-500.0,0.00019178,2]
[347877977,1736178639989,-500.0,0.00019178,2]
[347877979,1736178639998,-500.0,0.00019178,2]
[347877981,1736178640007,-500.0,0.00019178,2]
[347877983,1736178640016,-500.0,0.00019178,2]
[347877985,1736178640028,-237.47278137,0.00019178,2]
[347877987,1736178640038,-500.0,0.00019178,2]
[347877989,1736178640047,-500.0,0.00019178,2]
[347877990,1736178640056,-500.0,0.00019178,2]
[347877991,1736178640066,-500.0,0.00019178,2]
[347877992,1736178640077,-500.0,0.00019178,2]
[347877993,1736178640087,-500.0,0.00019178,2]
[347877995,1736178640097,-500.0,0.00019178,2]
[347877997,1736178640106,-500.0,0.00019178,2]
[347877999,1736178640116,-625.10440671,0.00019178,2]
[347878001,1736178640125,-500.0,0.00019178,2]
[347878004,1736178640134,-500.0,0.00019178,2]
[347878007,1736178640144,-500.0,0.00019178,2]
[347878010,1736178640153,-500.0,0.00019178,2]
[347878012,1736178640162,-520.84891041,0.00019178,2]
[347878014,1736178640171,-254.19619453,0.00019178,2]
[347878016,1736178640180,-504.87411607,0.00019178,2]
[347878018,1736178640190,-500.0,0.00019178,2]
[347878020,1736178640199,-500.0,0.00019178,2]
[347878022,1736178640209,-500.0,0.00019178,2]
[347878024,1736178640218,-500.0,0.00019178,2]
[347878026,1736178640228,-500.0,0.00019178,2]
[347878028,1736178640238,-500.0,0.00019178,2]
[347878030,1736178640248,-500.0,0.00019178,2]
[347878032,1736178640258,-500.0,0.00019178,2]
[347878034,1736178640268,-500.0,0.00019178,2]
[347878036,1736178640280,-500.0,0.00019178,2]
[347878038,1736178640289,-500.0,0.00019178,2]
[347878040,1736178640299,-500.0,0.00019178,2]
[347878042,1736178640308,-500.0,0.00019178,2]
[347878044,1736178640317,-500.0,0.00019178,2]
[347878046,1736178640328,-500.0,0.00019178,2]
[347878054,1736178640402,-500.0,0.00019178,2]
[347878056,1736178640413,-500.0,0.00019178,2]
[347878059,1736178640423,-500.0,0.00019178,2]
[347878061,1736178640432,-500.0,0.00019178,2]
[347878063,1736178640442,-500.0,0.00019178,2]
[347878065,1736178640451,-500.0,0.00019178,2]
[347878067,1736178640461,-502.19862877,0.00019178,2]
[347878069,1736178640470,-500.0,0.00019178,2]
[347878071,1736178640480,-500.0,0.00019178,2]
[347878073,1736178640490,-500.0,0.00019178,2]
[347878075,1736178640500,-500.0,0.00019178,2]
[347878077,1736178640510,-500.0,0.00019178,2]
[347878079,1736178640519,-500.0,0.00019178,2]
[347878081,1736178640532,-500.0,0.00019178,2]
[347878083,1736178640541,-500.0,0.00019178,2]
[347878085,1736178640551,-667.85,0.00019178,2]
[347878087,1736178640560,-500.0,0.00019178,2]
[347878089,1736178640570,-500.41135868,0.00019178,2]
[347878091,1736178640579,-506.18991754,0.00019178,2]
[347878093,1736178640590,-500.0,0.00019178,2]
[347878095,1736178640599,-500.0,0.00019178,2]
[347878097,1736178640608,-500.0,0.00019178,2]
[347878099,1736178640619,-500.0,0.00019178,2]
[347878101,1736178640629,-500.0,0.00019178,2]
[347878103,1736178640639,-500.0,0.00019178,2]
[347878105,1736178640648,-500.0,0.00019178,2]
[347878107,1736178640657,-500.0,0.00019178,2]
[347878109,1736178640667,-500.0,0.00019178,2]
[347878111,1736178640676,-500.0,0.00019178,2]
[347878113,1736178640685,-500.0,0.00019178,2]
[347878115,1736178640695,-500.0,0.00019178,2]
[347878117,1736178640704,-500.0,0.00019178,2]
[347878119,1736178640714,-500.0,0.00019178,2]
[347878121,1736178640723,-500.0,0.00019178,2]
[347878123,1736178640733,-500.0,0.00019178,2]
[347878125,1736178640743,-500.0,0.00019178,2]
[347878127,1736178640752,-500.0,0.00019178,2]
[347878129,1736178640762,-500.0,0.00019178,2]
[347878131,1736178640778,-527.78347254,0.00019178,2]
[347878133,1736178640788,-500.0,0.00019178,2]
[347878135,1736178640797,-503.52612224,0.00019178,2]
[347878137,1736178640810,-500.0,0.00019178,2]
[347878139,1736178640822,-500.0,0.00019178,2]
[347878141,1736178640831,-500.0,0.00019178,2]
[347878143,1736178640841,-500.0,0.00019178,2]
[347878145,1736178640851,-500.0,0.00019178,2]
[347878147,1736178640860,-500.0,0.00019178,2]
[347878149,1736178640870,-500.0,0.00019178,2]
[347878152,1736178640879,-500.0,0.00019178,2]
[347878154,1736178640893,-500.0,0.00019178,2]
[347878157,1736178640912,-500.0,0.00019178,2]
[347878160,1736178640928,-500.0,0.00019178,2]
[347878163,1736178640946,-500.44439062,0.00019178,2]
[347878166,1736178640965,-624.94,0.00019178,2]
[347878169,1736178640981,-500.0,0.00019178,2]
[347878171,1736178640998,-500.0,0.00019178,2]
[347878173,1736178641013,-500.0,0.00019178,2]
[347878174,1736178641030,-500.0,0.00019178,2]
[347878175,1736178641049,-500.0,0.00019178,2]
[347878176,1736178641067,-500.0,0.00019178,2]
[347878177,1736178641086,-500.0,0.00019178,2]
[347878178,1736178641099,-500.0,0.00019178,2]
[347878179,1736178641119,-503.1301979,0.00019178,2]
[347878180,1736178641133,-500.0,0.00019178,2]
[347878181,1736178641148,-500.0,0.00019178,2]
[347878182,1736178641161,-500.0,0.00019178,2]
[347878183,1736178641176,-500.0,0.00019178,2]
[347878184,1736178641190,-500.0,0.00019178,2]
[347878185,1736178641205,-500.0,0.00019178,2]
[347878186,1736178641220,-500.0,0.00019178,2]
[347878187,1736178641234,-500.0,0.00019178,2]
[347878189,1736178641247,-500.0,0.00019178,2]
[347878191,1736178641261,-500.0,0.00019178,2]
[347878193,1736178641278,-500.0,0.00019178,2]
[347878194,1736178641293,-500.0,0.00019178,2]
[347878195,1736178641308,-500.0,0.00019178,2]
[347878197,1736178641323,-500.0,0.00019178,2]
[347878199,1736178641338,-282.8598145,0.00019178,2]
[347878201,1736178641353,-506.58133574,0.00019178,2]
[347878203,1736178641367,-500.0,0.00019178,2]
[347878206,1736178641382,-500.0,0.00019178,2]
[347878208,1736178641397,-500.0,0.00019178,2]
[347878210,1736178641412,-500.0,0.00019178,2]
[347878212,1736178641426,-500.0,0.00019178,2]
[347878214,1736178641441,-500.0,0.00019178,2]
[347878216,1736178641456,-500.0,0.00019178,2]